{"text_format":"3","workbook":"xlsx","n_sheets":26,"sheets":["Início","1","2","3","4","5","6","7","8","9","10","11","12","13","14","15","16","17","18","19","20","21","22","23","24","Saiba mais"],"not_rendered":{"images":24,"defined_names":5,"pivot_tables":19},"read":"whole","date_system":"1900"}

{"sheet":"Início","index":0,"n_rows":5,"n_cols":1,"rows_kept":5}
["Bem-vindo\nInstruções para os leitores de ecrã: Tire maior partido das tabelas dinâmicas. Uma simples tabela dinâmica oferece-lhe um resumo geral dos seus dados, mas por vezes são necessárias respostas detalhadas a perguntas específicas. Nesse caso, adicionar mais campos de linha e de coluna poderá ajudar. \nAs instruções indicam as células necessárias para utilizar uma funcionalidade ou continuar a ler.\nPara começar, prima Ctrl+Page Down."]
["Tirar maior partido das \ntabelas dinâmicas"]
["Uma simples tabela dinâmica oferece-lhe um resumo geral dos seus dados,\nmas por vezes são necessárias respostas detalhadas a perguntas específicas.\nNesse caso, adicionar mais campos de linha e de coluna poderá ajudar."]
["INFORMAÇÕES ÚTEIS\nConcluiu o primeiro tutorial? Se a resposta for \"não\", aceda a Ficheiro > Novo e procure a opção \"Crie a sua primeira tabela dinâmica\"."]
["Aceda à parte superior ao premir Ctrl+Home. Para começar a apresentação, prima Ctrl+Page Down."]

{"sheet":"1","index":1,"n_rows":16,"n_cols":9,"rows_kept":16}
["No primeiro tutorial, apresentámos-lhe o conceito de uma tabela dinâmica. Também lhe explicámos como um campo de linha pode ser utilizado como uma condição que divide um campo de valor.   "]
["As células H10 a I14 contêm uma tabela dinâmica que resume os dados nas células B8 a E16. A tabela dinâmica tem duas colunas: Comprador e Soma de Montante. A coluna Comprador contém os valores Pai, Mãe, Margarida e Total Geral; a coluna Soma de Montante contém os valores 220 €, 270 €, 810 € e 1300 €. A coluna Comprador é composta por um Campo de Linha e a coluna Soma de Montante é composta por um Campo de Valor."]
["Para continuar com este tutorial, prima Ctrl+Page Down. Para ir para a folha anterior, prima Ctrl+Page Up."]
[]
[]
[]
[]
[null,"Data","Comprador","Tipo","Montante"]
["Este exemplo mostra como o campo de linha…","2017-01-01","Pai","Presentes",{"v":95,"d":"95 €"}]
["…divide o campo de valor.","2017-01-15","Mãe","Comida",{"v":325,"d":"325 €"},null,null,"Comprador","Soma de Montante"]
[null,"2017-01-17","Mãe","Bilhetes",{"v":250,"d":"250 €"},null,null,"Pai",{"v":220,"d":"220 €"}]
[null,"2017-01-21","Pai","Comida",{"v":125,"d":"125 €"},null,null,"Margarida",{"v":270,"d":"270 €"}]
[null,"2017-02-02","Mãe","Comida",{"v":235,"d":"235 €"},null,null,"Mãe",{"v":810,"d":"810 €"}]
[null,"2017-02-20","Margarida","Música",{"v":20,"d":"20 €"},null,null,"Total Geral",{"v":1300,"d":"1,300 €"}]
[null,"2017-02-25","Margarida","Bilhetes",{"v":125,"d":"125 €"}]
[null,"2017-02-25","Margarida","Desporto",{"v":125,"d":"125 €"}]

{"sheet":"2","index":2,"n_rows":108,"n_cols":7,"rows_kept":108}
["No entanto, ao observar inicialmente uma tabela dinâmica, poderá pensar que a mesma precisa de fornecer mais respostas."]
["Ao observar inicialmente uma tabela dinâmica, poderão surgir perguntas como \"Quando ocorreram estas compras?\", \"Para que tipo de compra foi utilizado o dinheiro de cada pessoa?\", \"Em que gastou a Mãe tanto dinheiro?\"."]
["Neste exemplo, as células F11 a G15 mostram a mesma tabela dinâmica de duas colunas. A coluna Comprador é um Campo de Linha e contém os valores Pai, Mãe, Margarida e Total Geral; a coluna Soma de Montante é o Campo de Valor e contém os valores 220 €, 270 €, 810 € e 1300 €. "]
["Para continuar com este tutorial, prima Ctrl+Page Down. Para ir para a folha anterior, prima Ctrl+Page Up."]
[]
[]
[]
[]
[]
[]
[{"$nulls":5},"Comprador","Soma de Montante"]
[{"$nulls":5},"Pai",{"v":220,"d":"220 €"}]
[{"$nulls":5},"Margarida",{"v":270,"d":"270 €"}]
[{"$nulls":5},"Mãe",{"v":810,"d":"810 €"}]
[{"$nulls":5},"Total Geral",{"v":1300,"d":"1,300 €"}]
{"$rows_empty":84}
[null,"Data","Comprador","Tipo","Montante"]
[null,"2017-01-01","Pai","Presentes",{"v":95,"d":"95 €"}]
[null,"2017-01-15","Mãe","Comida",{"v":325,"d":"325 €"}]
[null,"2017-01-17","Mãe","Bilhetes",{"v":250,"d":"250 €"}]
[null,"2017-01-21","Pai","Comida",{"v":125,"d":"125 €"}]
[null,"2017-02-02","Mãe","Comida",{"v":235,"d":"235 €"}]
[null,"2017-02-20","Margarida","Música",{"v":20,"d":"20 €"}]
[null,"2017-02-25","Margarida","Bilhetes",{"v":125,"d":"125 €"}]
[null,"2017-02-25","Margarida","Desporto",{"v":125,"d":"125 €"}]

{"sheet":"3","index":3,"n_rows":108,"n_cols":7,"rows_kept":108}
["Estas são excelentes perguntas, mas por agora vamos focar-nos em apenas uma."]
["Para que tipo de compra foi utilizado o dinheiro de cada pessoa?"]
["Para referência, as células F11 a G15 mostram a mesma tabela dinâmica de duas colunas. A coluna Comprador é um Campo de Linha e contém os valores Pai, Mãe, Margarida e Total Geral; a coluna Soma de Montante é o Campo de Valor e contém os valores 220 €, 270 €, 810 € e 1300 €. "]
["Para continuar com este tutorial, prima Ctrl+Page Down. Para ir para a folha anterior, prima Ctrl+Page Up."]
[]
[]
[]
[]
[]
[]
[{"$nulls":5},"Comprador","Soma de Montante"]
[{"$nulls":5},"Pai",{"v":220,"d":"220 €"}]
[{"$nulls":5},"Margarida",{"v":270,"d":"270 €"}]
[{"$nulls":5},"Mãe",{"v":810,"d":"810 €"}]
[{"$nulls":5},"Total Geral",{"v":1300,"d":"1,300 €"}]
{"$rows_empty":84}
[null,"Data","Comprador","Tipo","Montante"]
[null,"2017-01-01","Pai","Presentes",{"v":95,"d":"95 €"}]
[null,"2017-01-15","Mãe","Comida",{"v":325,"d":"325 €"}]
[null,"2017-01-17","Mãe","Bilhetes",{"v":250,"d":"250 €"}]
[null,"2017-01-21","Pai","Comida",{"v":125,"d":"125 €"}]
[null,"2017-02-02","Mãe","Comida",{"v":235,"d":"235 €"}]
[null,"2017-02-20","Margarida","Música",{"v":20,"d":"20 €"}]
[null,"2017-02-25","Margarida","Bilhetes",{"v":125,"d":"125 €"}]
[null,"2017-02-25","Margarida","Desporto",{"v":125,"d":"125 €"}]

{"sheet":"4","index":4,"n_rows":108,"n_cols":9,"rows_kept":108}
["A última pergunta à qual respondemos foi \"Para que tipo de compra foi utilizado o dinheiro de cada pessoa?\""]
["Respondemos a essa pergunta ao adicionar um campo de coluna a Tipo. Como resultado, a tabela dinâmica tem agora cinco novas colunas que apresentam o tipo de compra efetuado por cada pessoa. "]
["A nossa nova tabela dinâmica agora vai da célula C10 à I15, com colunas para Comprador, Comida, Música, Desporto, Bilhetes, Presentes e Total Geral. As colunas Comprador e Total Geral continuam iguais e as novas colunas de detalhe estão entre as mesmas."]
["Para continuar com este tutorial, prima Ctrl+Page Down. Para ir para a folha anterior, prima Ctrl+Page Up."]
[]
[]
[]
[]
[]
[null,null,"Soma de Montante","Tipo"]
[null,null,"Comprador","Comida","Música","Desporto","Bilhetes","Presentes","Total Geral"]
[null,null,"Pai",{"v":125,"d":"125 €"},{"$nulls":3},{"v":95,"d":"95 €"},{"v":220,"d":"220 €"}]
[null,null,"Margarida",null,{"v":20,"d":"20 €"},{"v":125,"d":"125 €"},{"v":125,"d":"125 €"},null,{"v":270,"d":"270 €"}]
[null,null,"Mãe",{"v":560,"d":"560 €"},null,null,{"v":250,"d":"250 €"},null,{"v":810,"d":"810 €"}]
[null,null,"Total Geral",{"v":685,"d":"685 €"},{"v":20,"d":"20 €"},{"v":125,"d":"125 €"},{"v":375,"d":"375 €"},{"v":95,"d":"95 €"},{"v":1300,"d":"1,300 €"}]
{"$rows_empty":84}
[null,"Data","Comprador","Tipo","Montante"]
[null,"2017-01-01","Pai","Presentes",{"v":95,"d":"95 €"}]
[null,"2017-01-15","Mãe","Comida",{"v":325,"d":"325 €"}]
[null,"2017-01-17","Mãe","Bilhetes",{"v":250,"d":"250 €"}]
[null,"2017-01-21","Pai","Comida",{"v":125,"d":"125 €"}]
[null,"2017-02-02","Mãe","Comida",{"v":235,"d":"235 €"}]
[null,"2017-02-20","Margarida","Música",{"v":20,"d":"20 €"}]
[null,"2017-02-25","Margarida","Bilhetes",{"v":125,"d":"125 €"}]
[null,"2017-02-25","Margarida","Desporto",{"v":125,"d":"125 €"}]

{"sheet":"5","index":5,"n_rows":108,"n_cols":9,"rows_kept":108}
["Se a tabela dinâmica for difícil de compreender, experimente isto: comece a ler a partir da esquerda, leia a parte superior e, em seguida, leia a parte inferior. No exemplo abaixo, Pai está na célula C12, 125 € de Comida na célula D12, 95 € de Presentes na célula E12 e 220 € de Total Geral na célula I12. As linhas 13 e 14 mostram os detalhes de Margarida e Mãe e a linha 15 mostra o Total Geral."]
["Para continuar com este tutorial, prima Ctrl+Page Down. Para ir para a folha anterior, prima Ctrl+Page Up."]
{"$rows_empty":7}
[null,null,"Soma de Montante","Tipo"]
[null,null,"Comprador","Comida","Presentes","Música","Desporto","Bilhetes","Total Geral"]
[null,null,"Pai",{"v":125,"d":"125 €"},{"v":95,"d":"95 €"},{"$nulls":3},{"v":220,"d":"220 €"}]
[null,null,"Margarida",null,null,{"v":20,"d":"20 €"},{"v":125,"d":"125 €"},{"v":125,"d":"125 €"},{"v":270,"d":"270 €"}]
[null,null,"Mãe",{"v":560,"d":"560 €"},{"$nulls":3},{"v":250,"d":"250 €"},{"v":810,"d":"810 €"}]
[null,null,"Total Geral",{"v":685,"d":"685 €"},{"v":95,"d":"95 €"},{"v":20,"d":"20 €"},{"v":125,"d":"125 €"},{"v":375,"d":"375 €"},{"v":1300,"d":"1,300 €"}]
{"$rows_empty":84}
[null,"Data","Comprador","Tipo","Montante"]
[null,"2017-01-01","Pai","Presentes",{"v":95,"d":"95 €"}]
[null,"2017-01-15","Mãe","Comida",{"v":325,"d":"325 €"}]
[null,"2017-01-17","Mãe","Bilhetes",{"v":250,"d":"250 €"}]
[null,"2017-01-21","Pai","Comida",{"v":125,"d":"125 €"}]
[null,"2017-02-02","Mãe","Comida",{"v":235,"d":"235 €"}]
[null,"2017-02-20","Margarida","Música",{"v":20,"d":"20 €"}]
[null,"2017-02-25","Margarida","Bilhetes",{"v":125,"d":"125 €"}]
[null,"2017-02-25","Margarida","Desporto",{"v":125,"d":"125 €"}]

{"sheet":"6","index":6,"n_rows":3,"n_cols":1,"rows_kept":3}
["Não o iremos fazer agora, mas daqui a alguns passos irá trabalhar com uma tabela dinâmica. Primeiro, irá adicionar detalhes ao Campo de Coluna. Irá fazê-lo ao colocar o campo Tipo na área do Campo de Colunas."]
["Uma imagem da Lista de Campos da tabela dinâmica mostra um cursor de seta a arrastar o campo Tipo para a área Colunas."]
["Para continuar com este tutorial, prima Ctrl+Page Down. Para ir para a folha anterior, prima Ctrl+Page Up."]

{"sheet":"7","index":7,"n_rows":108,"n_cols":8,"rows_kept":108}
["1. A Área da tabela dinâmica deste exemplo está nas células B13 a C17. Navegue para qualquer uma dessas células."]
["2. Prima Alt+KL, L para abrir a Lista de Campos da tabela dinâmica. Por predefinição, o foco estará na caixa de texto Procurar: Editar \"Procurar\""]
["3. Prima as teclas de seta para selecionar o campo Tipo. Quando estiver selecionado, prima a Barra de Espaço para adicionar o campo Tipo à área Linhas. "]
["4. Prima a Tabulação para selecionar o campo Tipo. Prima Enter e depois prima as teclas de seta para selecionar Mover para as Etiquetas de Colunas e prima Enter para adicionar o campo Tipo à área de Colunas. Prima Alt+KL+L para sair do painel de Campos da tabela dinâmica."]
["Para continuar com este tutorial, prima Ctrl+Page Down. Para ir para a folha anterior, prima Ctrl+Page Up."]
[]
[]
[]
[{"$nulls":7},{"$f":"IF(AND($B$14=\"Comprador\",$H$17=220),\"Bom trabalho! Colocou o seu\",\" \")","v":" "}]
[{"$nulls":7},{"$f":"IF(AND($B$14=\"Comprador\",$H$17=220),\"primeiro campo de coluna. Clique\",\" \")","v":" "}]
[{"$nulls":7},{"$f":"IF(AND($B$14=\"Comprador\",$H$17=220),\"em Seguinte para continuar…\",\" \")","v":" "}]
[]
[null,"Comprador","Soma de Montante"]
[null,"Mãe",{"v":810,"d":"810 €"}]
[null,"Margarida",{"v":270,"d":"270 €"}]
[null,"Pai",{"v":220,"d":"220 €"}]
[null,"Total Geral",{"v":1300,"d":"1,300 €"}]
{"$rows_empty":82}
[null,"Data","Comprador","Tipo","Montante"]
[null,"2017-01-01","Pai","Presentes",{"v":95,"d":"95 €"}]
[null,"2017-01-15","Mãe","Comida",{"v":325,"d":"325 €"}]
[null,"2017-01-17","Mãe","Bilhetes",{"v":250,"d":"250 €"}]
[null,"2017-01-21","Pai","Comida",{"v":125,"d":"125 €"}]
[null,"2017-02-02","Mãe","Comida",{"v":235,"d":"235 €"}]
[null,"2017-02-20","Margarida","Música",{"v":20,"d":"20 €"}]
[null,"2017-02-25","Margarida","Bilhetes",{"v":125,"d":"125 €"}]
[null,"2017-02-25","Margarida","Desporto",{"v":125,"d":"125 €"}]

{"sheet":"8","index":8,"n_rows":108,"n_cols":9,"rows_kept":108}
["Vamos analisar a tabela dinâmica que criou, mas desta vez adicionámos algumas cores especiais para diferenciar os campos de linha, de coluna e de valor."]
["O campo de linha está na célula C10 a C13 e tem um sombreado amarelo."]
["O campo de coluna está na célula D9 a H10 e tem um sombreado laranja."]
["O campo de valor está na célula D11 a H13 e tem um sombreado azul."]
["Para continuar com este tutorial, prima Ctrl+Page Down. Para ir para a folha anterior, prima Ctrl+Page Up."]
[]
[]
[]
[null,null,"Soma de Montante","Tipo"]
[null,null,"Comprador","Comida","Presentes","Música","Desporto","Bilhetes","Total Geral"]
[null,null,"Pai",{"v":125,"d":"125 €"},{"v":95,"d":"95 €"},{"$nulls":3},{"v":220,"d":"220 €"}]
[null,null,"Margarida",null,null,{"v":20,"d":"20 €"},{"v":125,"d":"125 €"},{"v":125,"d":"125 €"},{"v":270,"d":"270 €"}]
[null,null,"Mãe",{"v":560,"d":"560 €"},{"$nulls":3},{"v":250,"d":"250 €"},{"v":810,"d":"810 €"}]
[null,null,"Total Geral",{"v":685,"d":"685 €"},{"v":95,"d":"95 €"},{"v":20,"d":"20 €"},{"v":125,"d":"125 €"},{"v":375,"d":"375 €"},{"v":1300,"d":"1,300 €"}]
{"$rows_empty":85}
[null,"Data","Comprador","Tipo","Montante"]
[null,"2017-01-01","Pai","Presentes",{"v":95,"d":"95 €"}]
[null,"2017-01-15","Mãe","Comida",{"v":325,"d":"325 €"}]
[null,"2017-01-17","Mãe","Bilhetes",{"v":250,"d":"250 €"}]
[null,"2017-01-21","Pai","Comida",{"v":125,"d":"125 €"}]
[null,"2017-02-02","Mãe","Comida",{"v":235,"d":"235 €"}]
[null,"2017-02-20","Margarida","Música",{"v":20,"d":"20 €"}]
[null,"2017-02-25","Margarida","Bilhetes",{"v":125,"d":"125 €"}]
[null,"2017-02-25","Margarida","Desporto",{"v":125,"d":"125 €"}]

{"sheet":"9","index":9,"n_rows":3,"n_cols":1,"rows_kept":3}
["Eis outra forma de analisar isto: o campo de linha está à esquerda e o campo de coluna está na parte superior. Cada um destes campos fornece uma condição ao campo de valor, que soma os mesmos."]
["Uma imagem conceptual mostra uma área de retângulo de quatro secções com o Campo de Linha no canto inferior esquerdo a amarelo, o Campo de Coluna no canto superior direito a laranja e o Campo de Valor no canto inferior direito a azul."]
["Para continuar com este tutorial, prima Ctrl+Page Down. Para ir para a folha anterior, prima Ctrl+Page Up."]

{"sheet":"10","index":10,"n_rows":3,"n_cols":1,"rows_kept":3}
["Pense dessa forma quando utilizar a lista de campos. o campo de linha está à esquerda e o campo de coluna está na parte superior. Cada um destes campos fornece uma condição ao campo de valor, que soma os mesmos."]
["Uma imagem conceptual mostra a Lista de Campos da tabela dinâmica com o Campo de Linha no canto inferior esquerdo a amarelo, o Campo de Coluna no canto superior direito a laranja e o Campo de Valor no canto inferior direito a azul."]
["Para continuar com este tutorial, prima Ctrl+Page Down. Para ir para a folha anterior, prima Ctrl+Page Up."]

{"sheet":"11","index":11,"n_rows":121,"n_cols":24,"rows_kept":121}
["Tenha em atenção o seguinte: se um campo de coluna adicionar muitas colunas a uma tabela dinâmica, irá torná-la muito extensa. "]
["Neste exemplo, a tabela dinâmica estende-se da célula C10 à X15, pois o campo de coluna adicionou 20 novas colunas. São muitas colunas! Isto fará com que as pessoas tenham de se deslocar muito…"]
["Para continuar com este tutorial, prima Ctrl+Page Down. Para ir para a folha anterior, prima Ctrl+Page Up."]
[]
[]
[]
[]
[]
[]
[null,null,"Soma de Montante","Tipo"]
[null,null,"Comprador","Aulas de música","Bilhetes","Combustível","Comida","Dentista","Desporto","Eletricidade","Equipamento eletrónico","Estacionamento","Impostos","Livros","Médico","Música","Passagens Aéreas","Quotas","Restauração","Roupas","Seguro da casa","Seguro de saúde","Seguro do carro","Total Geral"]
[null,null,"Pai",{"$nulls":5},{"v":1000,"d":"1,000 €"},{"$nulls":3},{"v":500,"d":"500 €"},{"$nulls":3},{"v":500,"d":"500 €"},{"$nulls":6},{"v":2000,"d":"2,000 €"}]
[null,null,"Margarida",{"v":250,"d":"250 €"},{"v":125,"d":"125 €"},{"$nulls":5},{"v":125,"d":"125 €"},{"v":20,"d":"20 €"},null,{"v":250,"d":"250 €"},null,{"v":20,"d":"20 €"},null,null,{"v":20,"d":"20 €"},{"v":125,"d":"125 €"},{"$nulls":3},{"v":935,"d":"935 €"}]
[null,null,"Mãe",null,null,{"v":74,"d":"74 €"},{"v":470,"d":"470 €"},{"v":235,"d":"235 €"},null,{"v":70,"d":"70 €"},{"$nulls":4},{"v":74,"d":"74 €"},null,null,{"v":125,"d":"125 €"},null,null,{"v":235,"d":"235 €"},{"v":70,"d":"70 €"},{"v":74,"d":"74 €"},{"v":1427,"d":"1,427 €"}]
[null,null,"Total Geral",{"v":250,"d":"250 €"},{"v":125,"d":"125 €"},{"v":74,"d":"74 €"},{"v":470,"d":"470 €"},{"v":235,"d":"235 €"},{"v":1000,"d":"1,000 €"},{"v":70,"d":"70 €"},{"v":125,"d":"125 €"},{"v":20,"d":"20 €"},{"v":500,"d":"500 €"},{"v":250,"d":"250 €"},{"v":74,"d":"74 €"},{"v":20,"d":"20 €"},{"v":500,"d":"500 €"},{"v":125,"d":"125 €"},{"v":20,"d":"20 €"},{"v":125,"d":"125 €"},{"v":235,"d":"235 €"},{"v":70,"d":"70 €"},{"v":74,"d":"74 €"},{"v":4362,"d":"4,362 €"}]
{"$rows_empty":84}
[null,"Data","Comprador","Tipo","Montante"]
[null,"2017-01-17","Pai","Desporto",{"v":1000,"d":"1,000 €"}]
[null,"2017-01-17","Pai","Passagens Aéreas",{"v":500,"d":"500 €"}]
[null,"2017-01-17","Pai","Impostos",{"v":500,"d":"500 €"}]
[null,"2017-02-20","Margarida","Música",{"v":20,"d":"20 €"}]
[null,"2017-02-25","Margarida","Bilhetes",{"v":125,"d":"125 €"}]
[null,"2017-01-21","Margarida","Livros",{"v":250,"d":"250 €"}]
[null,"2017-02-20","Margarida","Restauração",{"v":20,"d":"20 €"}]
[null,"2017-02-25","Margarida","Roupas",{"v":125,"d":"125 €"}]
[null,"2017-01-21","Margarida","Aulas de música",{"v":250,"d":"250 €"}]
[null,"2017-02-20","Margarida","Estacionamento",{"v":20,"d":"20 €"}]
[null,"2017-02-25","Margarida","Equipamento eletrónico",{"v":125,"d":"125 €"}]
[null,"2017-01-01","Mãe","Combustível",{"v":74,"d":"74 €"}]
[null,"2017-01-15","Mãe","Comida",{"v":235,"d":"235 €"}]
[null,"2017-01-21","Mãe","Quotas",{"v":125,"d":"125 €"}]
[null,"2017-02-02","Mãe","Comida",{"v":235,"d":"235 €"}]
[null,"2017-01-01","Mãe","Médico",{"v":74,"d":"74 €"}]
[null,"2017-01-15","Mãe","Eletricidade",{"v":70,"d":"70 €"}]
[null,"2017-02-02","Mãe","Dentista",{"v":235,"d":"235 €"}]
[null,"2017-01-01","Mãe","Seguro do carro",{"v":74,"d":"74 €"}]
[null,"2017-01-15","Mãe","Seguro de saúde",{"v":70,"d":"70 €"}]
[null,"2017-02-02","Mãe","Seguro da casa",{"v":235,"d":"235 €"}]

{"sheet":"12","index":12,"n_rows":119,"n_cols":5,"rows_kept":119}
["Existe uma alternativa às tabelas dinâmicas demasiado grandes: pode utilizar um segundo campo de linha. Será apresentado um segundo campo de linha com avanços abaixo do primeiro campo de linha."]
["Neste exemplo, temos uma tabela dinâmica da célula D8 à E32. Mostra os campos Pai, Margarida e Mãe na posição de primeiro campo de linha na coluna D. Abaixo encontram-se os tipos de gastos na posição de segundo campo de linha, com itens como Desporto, Passagens Aéreas, Restauração, etc."]
["INFORMAÇÕES ÚTEIS\nUm segundo campo de linha torna uma tabela dinâmica orientada na vertical e não na horizontal. Para algumas pessoas, as tabelas dinâmicas verticais são mais fáceis de ler porque não é preciso deslocar-se lateralmente."]
["EXPLICAÇÃO DO EXCEL\nPor vezes, um segundo campo de linha é denominado um \"campo de linha secundário\"."]
["Para continuar com este tutorial, prima Ctrl+Page Down. Para ir para a folha anterior, prima Ctrl+Page Up."]
[]
[]
[{"$nulls":3},"Rótulos de Linha","Soma de Montante"]
[{"$nulls":3},"Pai",{"v":2000,"d":"2,000 €"}]
[{"$nulls":3},"Desporto",{"v":1000,"d":"1,000 €"}]
[{"$nulls":3},"Impostos",{"v":500,"d":"500 €"}]
[{"$nulls":3},"Passagens Aéreas",{"v":500,"d":"500 €"}]
[{"$nulls":3},"Margarida",{"v":935,"d":"935 €"}]
[{"$nulls":3},"Livros",{"v":250,"d":"250 €"}]
[{"$nulls":3},"Música",{"v":20,"d":"20 €"}]
[{"$nulls":3},"Bilhetes",{"v":125,"d":"125 €"}]
[{"$nulls":3},"Restauração",{"v":20,"d":"20 €"}]
[{"$nulls":3},"Estacionamento",{"v":20,"d":"20 €"}]
[{"$nulls":3},"Equipamento eletrónico",{"v":125,"d":"125 €"}]
[{"$nulls":3},"Roupas",{"v":125,"d":"125 €"}]
[{"$nulls":3},"Aulas de música",{"v":250,"d":"250 €"}]
[{"$nulls":3},"Mãe",{"v":1427,"d":"1,427 €"}]
[{"$nulls":3},"Comida",{"v":470,"d":"470 €"}]
[{"$nulls":3},"Combustível",{"v":74,"d":"74 €"}]
[{"$nulls":3},"Eletricidade",{"v":70,"d":"70 €"}]
[{"$nulls":3},"Médico",{"v":74,"d":"74 €"}]
[{"$nulls":3},"Dentista",{"v":235,"d":"235 €"}]
[{"$nulls":3},"Seguro do carro",{"v":74,"d":"74 €"}]
[{"$nulls":3},"Quotas",{"v":125,"d":"125 €"}]
[{"$nulls":3},"Seguro de saúde",{"v":70,"d":"70 €"}]
[{"$nulls":3},"Seguro da casa",{"v":235,"d":"235 €"}]
[{"$nulls":3},"Total Geral",{"v":4362,"d":"4,362 €"}]
{"$rows_empty":65}
[null,"Data","Comprador","Tipo","Montante"]
[null,"2017-01-17","Pai","Desporto",{"v":1000,"d":"1,000 €"}]
[null,"2017-01-17","Pai","Passagens Aéreas",{"v":500,"d":"500 €"}]
[null,"2017-01-17","Pai","Impostos",{"v":500,"d":"500 €"}]
[null,"2017-02-20","Margarida","Música",{"v":20,"d":"20 €"}]
[null,"2017-02-25","Margarida","Bilhetes",{"v":125,"d":"125 €"}]
[null,"2017-01-21","Margarida","Livros",{"v":250,"d":"250 €"}]
[null,"2017-02-20","Margarida","Restauração",{"v":20,"d":"20 €"}]
[null,"2017-02-25","Margarida","Roupas",{"v":125,"d":"125 €"}]
[null,"2017-01-21","Margarida","Aulas de música",{"v":250,"d":"250 €"}]
[null,"2017-02-20","Margarida","Estacionamento",{"v":20,"d":"20 €"}]
[null,"2017-02-25","Margarida","Equipamento eletrónico",{"v":125,"d":"125 €"}]
[null,"2017-01-01","Mãe","Combustível",{"v":74,"d":"74 €"}]
[null,"2017-01-15","Mãe","Comida",{"v":235,"d":"235 €"}]
[null,"2017-01-21","Mãe","Quotas",{"v":125,"d":"125 €"}]
[null,"2017-02-02","Mãe","Comida",{"v":235,"d":"235 €"}]
[null,"2017-01-01","Mãe","Médico",{"v":74,"d":"74 €"}]
[null,"2017-01-15","Mãe","Eletricidade",{"v":70,"d":"70 €"}]
[null,"2017-02-02","Mãe","Dentista",{"v":235,"d":"235 €"}]
[null,"2017-01-01","Mãe","Seguro do carro",{"v":74,"d":"74 €"}]
[null,"2017-01-15","Mãe","Seguro de saúde",{"v":70,"d":"70 €"}]
[null,"2017-02-02","Mãe","Seguro da casa",{"v":235,"d":"235 €"}]

{"sheet":"13","index":13,"n_rows":3,"n_cols":1,"rows_kept":3}
["Na folha seguinte irá adicionar um segundo campo de linha. Irá fazê-lo ao colocar o campo Tipo abaixo do campo Comprador na área Linhas."]
["Uma imagem da Lista de Campos da tabela dinâmica a mostrar um cursor de seta a arrastar o campo Tipo para a área Linhas."]
["Para continuar com este tutorial, prima Ctrl+Page Down. Para ir para a folha anterior, prima Ctrl+Page Up."]

{"sheet":"14","index":14,"n_rows":122,"n_cols":9,"rows_kept":122}
["1. A Área da tabela dinâmica deste exemplo está nas células B13 a C17. Navegue para qualquer uma dessas células. "]
["2. Prima Alt+KL, L para abrir a Lista de Campos da tabela dinâmica. Por predefinição o foco estará na caixa de texto Procurar: \"Escrever palavras a procurar\". Não escreva nada e, em vez disso, prima a Tecla de Tabulação uma vez. NOTA: se a Lista de Campos não for aberta, prima Alt+KL, L novamente."]
["3. Prima as teclas de seta para ir para o campo Tipo. Prima a Barra de Espaço para adicionar o campo Tipo à área Linhas. "]
["4. Prima a tecla Esc para sair do painel Campos da tabela dinâmica. "]
["Para continuar com este tutorial, prima Ctrl+Page Down. Para ir para a folha anterior, prima Ctrl+Page Up.",{"$nulls":7},{"$f":"IF(AND($B$15=\"Desporto\",$C$36=74),\"Bom trabalho! Adicionou um\",\" \")","v":" "}]
[{"$nulls":8},{"$f":"IF(AND($B$15=\"Desporto\",$C$36=74),\"segundo campo de linha à tabela\",\" \")","v":" "}]
[{"$nulls":8},{"$f":"IF(AND($B$15=\"Desporto\",$C$36=74),\"dinâmica. Desloque-se para\",\" \")","v":" "}]
[{"$nulls":8},{"$f":"IF(AND($B$15=\"Desporto\",$C$36=74),\"baixo e clique em Seguinte…\",\" \")","v":" "}]
[]
[]
[]
[]
[null,"Rótulos de Linha","Soma de Montante"]
[null,"Pai",{"v":2000,"d":"2,000 €"}]
[null,"Margarida",{"v":935,"d":"935 €"}]
[null,"Mãe",{"v":1427,"d":"1,427 €"}]
[null,"Total Geral",{"v":4362,"d":"4,362 €"}]
{"$rows_empty":83}
[null,"Data","Comprador","Tipo","Montante"]
[null,"2017-01-17","Pai","Desporto",{"v":1000,"d":"1,000 €"}]
[null,"2017-01-17","Pai","Passagens Aéreas",{"v":500,"d":"500 €"}]
[null,"2017-01-17","Pai","Impostos",{"v":500,"d":"500 €"}]
[null,"2017-02-20","Margarida","Música",{"v":20,"d":"20 €"}]
[null,"2017-02-25","Margarida","Bilhetes",{"v":125,"d":"125 €"}]
[null,"2017-01-21","Margarida","Livros",{"v":250,"d":"250 €"}]
[null,"2017-02-20","Margarida","Restauração",{"v":20,"d":"20 €"}]
[null,"2017-02-25","Margarida","Roupas",{"v":125,"d":"125 €"}]
[null,"2017-01-21","Margarida","Aulas de música",{"v":250,"d":"250 €"}]
[null,"2017-02-20","Margarida","Estacionamento",{"v":20,"d":"20 €"}]
[null,"2017-02-25","Margarida","Equipamento eletrónico",{"v":125,"d":"125 €"}]
[null,"2017-01-01","Mãe","Combustível",{"v":74,"d":"74 €"}]
[null,"2017-01-15","Mãe","Comida",{"v":235,"d":"235 €"}]
[null,"2017-01-21","Mãe","Quotas",{"v":125,"d":"125 €"}]
[null,"2017-02-02","Mãe","Comida",{"v":235,"d":"235 €"}]
[null,"2017-01-01","Mãe","Médico",{"v":74,"d":"74 €"}]
[null,"2017-01-15","Mãe","Eletricidade",{"v":70,"d":"70 €"}]
[null,"2017-02-02","Mãe","Dentista",{"v":235,"d":"235 €"}]
[null,"2017-01-01","Mãe","Seguro do carro",{"v":74,"d":"74 €"}]
[null,"2017-01-15","Mãe","Seguro de saúde",{"v":70,"d":"70 €"}]
[null,"2017-02-02","Mãe","Seguro da casa",{"v":235,"d":"235 €"}]

{"sheet":"15","index":15,"n_rows":121,"n_cols":7,"rows_kept":121}
["Se precisar de simplificar a tabela dinâmica, pode fechar os dados do segundo campo de linha. "]
["A tabela dinâmica deste exemplo está nas células F7 a G31. Selecione a célula F8 para escolher o primeiro campo de linha para Pai. Em seguida, prima Alt+KL > E para expandir o segundo campo ou FE para o fechar."]
["Para continuar com este tutorial, prima Ctrl+Page Down. Para ir para a folha anterior, prima Ctrl+Page Up."]
[]
[]
[{"$nulls":5},{"$f":"IF(AND($F$9=\"Margarida\",$G$9=935),\"Boa!\",\" \")","v":" "}]
[{"$nulls":5},"Rótulos de Linha","Soma de Montante"]
[{"$nulls":5},"Pai",{"v":2000,"d":"2,000 €"}]
[{"$nulls":5},"Desporto",{"v":1000,"d":"1,000 €"}]
[{"$nulls":5},"Impostos",{"v":500,"d":"500 €"}]
[{"$nulls":5},"Passagens Aéreas",{"v":500,"d":"500 €"}]
[{"$nulls":5},"Margarida",{"v":935,"d":"935 €"}]
[{"$nulls":5},"Livros",{"v":250,"d":"250 €"}]
[{"$nulls":5},"Estacionamento",{"v":20,"d":"20 €"}]
[{"$nulls":5},"Equipamento eletrónico",{"v":125,"d":"125 €"}]
[{"$nulls":5},"Música",{"v":20,"d":"20 €"}]
[{"$nulls":5},"Restauração",{"v":20,"d":"20 €"}]
[{"$nulls":5},"Bilhetes",{"v":125,"d":"125 €"}]
[{"$nulls":5},"Roupas",{"v":125,"d":"125 €"}]
[{"$nulls":5},"Aulas de música",{"v":250,"d":"250 €"}]
[{"$nulls":5},"Mãe",{"v":1427,"d":"1,427 €"}]
[{"$nulls":5},"Seguro do carro",{"v":74,"d":"74 €"}]
[{"$nulls":5},"Dentista",{"v":235,"d":"235 €"}]
[{"$nulls":5},"Eletricidade",{"v":70,"d":"70 €"}]
[{"$nulls":5},"Comida",{"v":470,"d":"470 €"}]
[{"$nulls":5},"Combustível",{"v":74,"d":"74 €"}]
[{"$nulls":5},"Médico",{"v":74,"d":"74 €"}]
[{"$nulls":5},"Quotas",{"v":125,"d":"125 €"}]
[{"$nulls":5},"Seguro de saúde",{"v":70,"d":"70 €"}]
[{"$nulls":5},"Seguro da casa",{"v":235,"d":"235 €"}]
[{"$nulls":5},"Total Geral",{"v":4362,"d":"4,362 €"}]
{"$rows_empty":68}
[null,"Data","Comprador","Tipo","Montante"]
[null,"2017-01-17","Pai","Desporto",{"v":1000,"d":"1,000 €"}]
[null,"2017-01-17","Pai","Passagens Aéreas",{"v":500,"d":"500 €"}]
[null,"2017-01-17","Pai","Impostos",{"v":500,"d":"500 €"}]
[null,"2017-02-20","Margarida","Música",{"v":20,"d":"20 €"}]
[null,"2017-02-25","Margarida","Bilhetes",{"v":125,"d":"125 €"}]
[null,"2017-01-21","Margarida","Livros",{"v":250,"d":"250 €"}]
[null,"2017-02-20","Margarida","Restauração",{"v":20,"d":"20 €"}]
[null,"2017-02-25","Margarida","Roupas",{"v":125,"d":"125 €"}]
[null,"2017-01-21","Margarida","Aulas de música",{"v":250,"d":"250 €"}]
[null,"2017-02-20","Margarida","Estacionamento",{"v":20,"d":"20 €"}]
[null,"2017-02-25","Margarida","Equipamento eletrónico",{"v":125,"d":"125 €"}]
[null,"2017-01-01","Mãe","Combustível",{"v":74,"d":"74 €"}]
[null,"2017-01-15","Mãe","Comida",{"v":235,"d":"235 €"}]
[null,"2017-01-21","Mãe","Quotas",{"v":125,"d":"125 €"}]
[null,"2017-02-02","Mãe","Comida",{"v":235,"d":"235 €"}]
[null,"2017-01-01","Mãe","Médico",{"v":74,"d":"74 €"}]
[null,"2017-01-15","Mãe","Eletricidade",{"v":70,"d":"70 €"}]
[null,"2017-02-02","Mãe","Dentista",{"v":235,"d":"235 €"}]
[null,"2017-01-01","Mãe","Seguro do carro",{"v":74,"d":"74 €"}]
[null,"2017-01-15","Mãe","Seguro de saúde",{"v":70,"d":"70 €"}]
[null,"2017-02-02","Mãe","Seguro da casa",{"v":235,"d":"235 €"}]

{"sheet":"16","index":16,"n_rows":121,"n_cols":7,"rows_kept":121}
["Também pode fechar ou expandir o segundo campo de linha inteiro para simplificar ainda mais a tabela dinâmica."]
["Eis a Chave"]
["Selecione o intervalo de dados da tabela dinâmica da célula F7 à G31 e, em seguida, prima Alt+KL, FE para fechar o grupo inteiro. Por outro lado, premir Alt+KL, E irá expandir o grupo inteiro."]
["Para continuar com este tutorial, prima Ctrl+Page Down. Para ir para a folha anterior, prima Ctrl+Page Up."]
[]
[{"$nulls":5},{"$f":"IF(AND($F$9=\"Margarida\",$G$9=935),\"Bom trabalho!\",\" \")","v":" "}]
[{"$nulls":5},"Rótulos de Linha","Soma de Montante"]
[{"$nulls":5},"Pai",{"v":2000,"d":"2,000 €"}]
[{"$nulls":5},"Desporto",{"v":1000,"d":"1,000 €"}]
[{"$nulls":5},"Impostos",{"v":500,"d":"500 €"}]
[{"$nulls":5},"Passagens Aéreas",{"v":500,"d":"500 €"}]
[{"$nulls":5},"Margarida",{"v":935,"d":"935 €"}]
[{"$nulls":5},"Livros",{"v":250,"d":"250 €"}]
[{"$nulls":5},"Restauração",{"v":20,"d":"20 €"}]
[{"$nulls":5},"Equipamento eletrónico",{"v":125,"d":"125 €"}]
[{"$nulls":5},"Música",{"v":20,"d":"20 €"}]
[{"$nulls":5},"Estacionamento",{"v":20,"d":"20 €"}]
[{"$nulls":5},"Bilhetes",{"v":125,"d":"125 €"}]
[{"$nulls":5},"Roupas",{"v":125,"d":"125 €"}]
[{"$nulls":5},"Aulas de música",{"v":250,"d":"250 €"}]
[{"$nulls":5},"Mãe",{"v":1427,"d":"1,427 €"}]
[{"$nulls":5},"Seguro do carro",{"v":74,"d":"74 €"}]
[{"$nulls":5},"Dentista",{"v":235,"d":"235 €"}]
[{"$nulls":5},"Eletricidade",{"v":70,"d":"70 €"}]
[{"$nulls":5},"Comida",{"v":470,"d":"470 €"}]
[{"$nulls":5},"Combustível",{"v":74,"d":"74 €"}]
[{"$nulls":5},"Médico",{"v":74,"d":"74 €"}]
[{"$nulls":5},"Quotas",{"v":125,"d":"125 €"}]
[{"$nulls":5},"Seguro de saúde",{"v":70,"d":"70 €"}]
[{"$nulls":5},"Seguro da casa",{"v":235,"d":"235 €"}]
[{"$nulls":5},"Total Geral",{"v":4362,"d":"4,362 €"}]
{"$rows_empty":68}
[null,"Data","Comprador","Tipo","Montante"]
[null,"2017-01-17","Pai","Desporto",{"v":1000,"d":"1,000 €"}]
[null,"2017-01-17","Pai","Passagens Aéreas",{"v":500,"d":"500 €"}]
[null,"2017-01-17","Pai","Impostos",{"v":500,"d":"500 €"}]
[null,"2017-02-20","Margarida","Música",{"v":20,"d":"20 €"}]
[null,"2017-02-25","Margarida","Bilhetes",{"v":125,"d":"125 €"}]
[null,"2017-01-21","Margarida","Livros",{"v":250,"d":"250 €"}]
[null,"2017-02-20","Margarida","Restauração",{"v":20,"d":"20 €"}]
[null,"2017-02-25","Margarida","Roupas",{"v":125,"d":"125 €"}]
[null,"2017-01-21","Margarida","Aulas de música",{"v":250,"d":"250 €"}]
[null,"2017-02-20","Margarida","Estacionamento",{"v":20,"d":"20 €"}]
[null,"2017-02-25","Margarida","Equipamento eletrónico",{"v":125,"d":"125 €"}]
[null,"2017-01-01","Mãe","Combustível",{"v":74,"d":"74 €"}]
[null,"2017-01-15","Mãe","Comida",{"v":235,"d":"235 €"}]
[null,"2017-01-21","Mãe","Quotas",{"v":125,"d":"125 €"}]
[null,"2017-02-02","Mãe","Comida",{"v":235,"d":"235 €"}]
[null,"2017-01-01","Mãe","Médico",{"v":74,"d":"74 €"}]
[null,"2017-01-15","Mãe","Eletricidade",{"v":70,"d":"70 €"}]
[null,"2017-02-02","Mãe","Dentista",{"v":235,"d":"235 €"}]
[null,"2017-01-01","Mãe","Seguro do carro",{"v":74,"d":"74 €"}]
[null,"2017-01-15","Mãe","Seguro de saúde",{"v":70,"d":"70 €"}]
[null,"2017-02-02","Mãe","Seguro da casa",{"v":235,"d":"235 €"}]

{"sheet":"17","index":17,"n_rows":107,"n_cols":13,"rows_kept":107}
["Também pode ter mais do que um campo de coluna. Os campos de coluna podem ser expandidos ou fechados."]
["A tabela dinâmica deste exemplo está nas células B13 a M19. Neste caso, temos uma categoria Tipo na secção Colunas, que inclui os itens de Comida e Serviços Públicos."]
["EXPERIMENTE ISTO\nSelecione Comida na célula C14 e prima Alt+KL, FE para fechar o campo inteiro. Premir Alt+KL, E irá expandi-lo."]
["Para continuar com este tutorial, prima Ctrl+Page Down. Para ir para a folha anterior, prima Ctrl+Page Up."]
{"$rows_empty":7}
[null,null,{"$f":"IF(AND($C$16=398,$D$15=\"Jan\"),\"Bom trabalho!\",\" \")","v":" "}]
[null,"Soma de Montante","Rótulos de Coluna"]
[null,null,"Comida",{"$nulls":3},"Comida Total","Serviços públicos",{"$nulls":3},"Serviços públicos Total","Total Geral"]
[null,"Rótulos de Linha","Jan","Fev","Mar","Abr",null,"Jan","Fev","Mar","Abr"]
[null,"Margarida",{"v":74,"d":"74 €"},{"v":74,"d":"74 €"},{"v":125,"d":"125 €"},{"v":125,"d":"125 €"},{"v":398,"d":"398 €"},{"$nulls":5},{"v":398,"d":"398 €"}]
[null,"Pai",{"v":235,"d":"235 €"},{"v":235,"d":"235 €"},{"v":235,"d":"235 €"},{"v":74,"d":"74 €"},{"v":779,"d":"779 €"},{"$nulls":5},{"v":779,"d":"779 €"}]
[null,"Mãe",{"$nulls":5},{"v":1000,"d":"1,000 €"},{"v":1000,"d":"1,000 €"},{"v":20,"d":"20 €"},{"v":70,"d":"70 €"},{"v":2090,"d":"2,090 €"},{"v":2090,"d":"2,090 €"}]
[null,"Total Geral",{"v":309,"d":"309 €"},{"v":309,"d":"309 €"},{"v":360,"d":"360 €"},{"v":199,"d":"199 €"},{"v":1177,"d":"1,177 €"},{"v":1000,"d":"1,000 €"},{"v":1000,"d":"1,000 €"},{"v":20,"d":"20 €"},{"v":70,"d":"70 €"},{"v":2090,"d":"2,090 €"},{"v":3267,"d":"3,267 €"}]
{"$rows_empty":75}
[null,"Mês","Comprador","Tipo","Montante"]
[null,"Jan","Margarida","Comida",{"v":74,"d":"74 €"}]
[null,"Jan","Pai","Comida",{"v":235,"d":"235 €"}]
[null,"Jan","Mãe","Serviços públicos",{"v":1000,"d":"1,000 €"}]
[null,"Fev","Margarida","Comida",{"v":74,"d":"74 €"}]
[null,"Fev","Pai","Comida",{"v":235,"d":"235 €"}]
[null,"Fev","Mãe","Serviços públicos",{"v":1000,"d":"1,000 €"}]
[null,"Mar","Margarida","Comida",{"v":125,"d":"125 €"}]
[null,"Mar","Pai","Comida",{"v":235,"d":"235 €"}]
[null,"Mar","Mãe","Serviços públicos",{"v":20,"d":"20 €"}]
[null,"Abr","Margarida","Comida",{"v":125,"d":"125 €"}]
[null,"Abr","Pai","Comida",{"v":74,"d":"74 €"}]
[null,"Abr","Mãe","Serviços públicos",{"v":70,"d":"70 €"}]

{"sheet":"18","index":18,"n_rows":146,"n_cols":5,"rows_kept":146}
["Tenha em atenção: se precisar de adicionar mais detalhes, é possível adicionar muitos mais campos de linha e de coluna. Neste exemplo, existem três campos de linha."]
["A tabela dinâmica deste exemplo estende-se da célula D8 à E29 e tem campos para Estação, Comprador e Tipo na coluna D, com Soma de Montante na coluna E."]
["SUGESTÃO AVANÇADA\nPoder adicionar imensos campos não significa necessariamente que deve fazê-lo. Neste exemplo, os campos funcionam bem. No entanto, a existência de demasiados campos e dos respetivos avanços pode tornar a tabela dinâmica difícil de compreender para outras pessoas. "]
["Para continuar com este tutorial, prima Ctrl+Page Down. Para ir para a folha anterior, prima Ctrl+Page Up."]
[]
[]
[]
[{"$nulls":3},"Rótulos de Linha","Soma de Montante"]
[{"$nulls":3},"Outono",{"v":5425,"d":"5,425 €"}]
[{"$nulls":3},"Mãe",{"v":5425,"d":"5,425 €"}]
[{"$nulls":3},"Seguros",{"v":1272,"d":"1,272 €"}]
[{"$nulls":3},"Renda",{"v":3220,"d":"3,220 €"}]
[{"$nulls":3},"Serviços públicos",{"v":933,"d":"933 €"}]
[{"$nulls":3},"Primavera",{"v":4760,"d":"4,760 €"}]
[{"$nulls":3},"Pai",{"v":4760,"d":"4,760 €"}]
[{"$nulls":3},"Seguros",{"v":1040,"d":"1,040 €"}]
[{"$nulls":3},"Renda",{"v":2400,"d":"2,400 €"}]
[{"$nulls":3},"Serviços públicos",{"v":1320,"d":"1,320 €"}]
[{"$nulls":3},"Verão",{"v":3473,"d":"3,473 €"}]
[{"$nulls":3},"Mãe",{"v":3473,"d":"3,473 €"}]
[{"$nulls":3},"Seguros",{"v":1080,"d":"1,080 €"}]
[{"$nulls":3},"Renda",{"v":1260,"d":"1,260 €"}]
[{"$nulls":3},"Serviços públicos",{"v":1133,"d":"1,133 €"}]
[{"$nulls":3},"Inverno",{"v":4100,"d":"4,100 €"}]
[{"$nulls":3},"Pai",{"v":4100,"d":"4,100 €"}]
[{"$nulls":3},"Seguros",{"v":1030,"d":"1,030 €"}]
[{"$nulls":3},"Renda",{"v":1420,"d":"1,420 €"}]
[{"$nulls":3},"Serviços públicos",{"v":1650,"d":"1,650 €"}]
[{"$nulls":3},"Total Geral",{"v":17758,"d":"17,758 €"}]
{"$rows_empty":68}
[null,"Comprador","Estação","Tipo","Montante"]
[null,"Pai","Inverno","Seguros",{"v":300,"d":"300 €"}]
[null,"Pai","Inverno","Renda",{"v":200,"d":"200 €"}]
[null,"Pai","Inverno","Serviços públicos",{"v":400,"d":"400 €"}]
[null,"Pai","Inverno","Seguros",{"v":300,"d":"300 €"}]
[null,"Pai","Inverno","Renda",{"v":800,"d":"800 €"}]
[null,"Pai","Inverno","Serviços públicos",{"v":400,"d":"400 €"}]
[null,"Pai","Inverno","Seguros",{"v":200,"d":"200 €"}]
[null,"Pai","Inverno","Renda",{"v":300,"d":"300 €"}]
[null,"Pai","Inverno","Serviços públicos",{"v":450,"d":"450 €"}]
[null,"Pai","Inverno","Seguros",{"v":230,"d":"230 €"}]
[null,"Pai","Inverno","Renda",{"v":120,"d":"120 €"}]
[null,"Pai","Inverno","Serviços públicos",{"v":400,"d":"400 €"}]
[null,"Pai","Primavera","Seguros",{"v":210,"d":"210 €"}]
[null,"Pai","Primavera","Renda",{"v":300,"d":"300 €"}]
[null,"Pai","Primavera","Serviços públicos",{"v":400,"d":"400 €"}]
[null,"Pai","Primavera","Seguros",{"v":230,"d":"230 €"}]
[null,"Pai","Primavera","Renda",{"v":900,"d":"900 €"}]
[null,"Pai","Primavera","Serviços públicos",{"v":300,"d":"300 €"}]
[null,"Pai","Primavera","Seguros",{"v":200,"d":"200 €"}]
[null,"Pai","Primavera","Renda",{"v":1000,"d":"1,000 €"}]
[null,"Pai","Primavera","Serviços públicos",{"v":220,"d":"220 €"}]
[null,"Pai","Primavera","Seguros",{"v":400,"d":"400 €"}]
[null,"Pai","Primavera","Renda",{"v":200,"d":"200 €"}]
[null,"Pai","Primavera","Serviços públicos",{"v":400,"d":"400 €"}]
[null,"Mãe","Verão","Seguros",{"v":100,"d":"100 €"}]
[null,"Mãe","Verão","Renda",{"v":30,"d":"30 €"}]
[null,"Mãe","Verão","Serviços públicos",{"v":123,"d":"123 €"}]
[null,"Mãe","Verão","Seguros",{"v":300,"d":"300 €"}]
[null,"Mãe","Verão","Renda",{"v":350,"d":"350 €"}]
[null,"Mãe","Verão","Serviços públicos",{"v":230,"d":"230 €"}]
[null,"Mãe","Verão","Seguros",{"v":120,"d":"120 €"}]
[null,"Mãe","Verão","Renda",{"v":640,"d":"640 €"}]
[null,"Mãe","Verão","Serviços públicos",{"v":530,"d":"530 €"}]
[null,"Mãe","Verão","Seguros",{"v":560,"d":"560 €"}]
[null,"Mãe","Verão","Renda",{"v":240,"d":"240 €"}]
[null,"Mãe","Verão","Serviços públicos",{"v":250,"d":"250 €"}]
[null,"Mãe","Outono","Seguros",{"v":62,"d":"62 €"}]
[null,"Mãe","Outono","Renda",{"v":600,"d":"600 €"}]
[null,"Mãe","Outono","Serviços públicos",{"v":340,"d":"340 €"}]
[null,"Mãe","Outono","Seguros",{"v":205,"d":"205 €"}]
[null,"Mãe","Outono","Renda",{"v":500,"d":"500 €"}]
[null,"Mãe","Outono","Serviços públicos",{"v":403,"d":"403 €"}]
[null,"Mãe","Outono","Seguros",{"v":503,"d":"503 €"}]
[null,"Mãe","Outono","Renda",{"v":2000,"d":"2,000 €"}]
[null,"Mãe","Outono","Serviços públicos",{"v":140,"d":"140 €"}]
[null,"Mãe","Outono","Seguros",{"v":502,"d":"502 €"}]
[null,"Mãe","Outono","Renda",{"v":120,"d":"120 €"}]
[null,"Mãe","Outono","Serviços públicos",{"v":50,"d":"50 €"}]

{"sheet":"19","index":19,"n_rows":55,"n_cols":5,"rows_kept":55}
["Está pronto para praticar mais? Veja os dados abaixo, nas células B7 a E55. Quando estiver pronto, vá para a folha seguinte para praticar o que já aprendeu. "]
["Não precisa de rever todas as linhas de dados. Veja só os nomes dos campos na linha 7. Irá trabalhar com os mesmos na folha seguinte. "]
["Para continuar com este tutorial, prima Ctrl+Page Down. Para ir para a folha anterior, prima Ctrl+Page Up."]
[]
[]
[]
[null,"Estação","Representante de Vendas","Produto","Unidades vendidas"]
[null,"Inverno","Teresa","Laranjas",300]
[null,"Inverno","Jorge","Toranjas",200]
[null,"Inverno","Filipe","Maçãs",400]
[null,"Inverno","Teresa","Bananas",300]
[null,"Inverno","Jorge","Laranjas",800]
[null,"Inverno","Filipe","Toranjas",400]
[null,"Inverno","Teresa","Maçãs",200]
[null,"Inverno","Jorge","Bananas",300]
[null,"Inverno","Filipe","Laranjas",450]
[null,"Inverno","Teresa","Toranjas",230]
[null,"Inverno","Jorge","Maçãs",120]
[null,"Inverno","Filipe","Bananas",400]
[null,"Primavera","Teresa","Beterrabas",210]
[null,"Primavera","Jorge","Batatas",300]
[null,"Primavera","Filipe","Alface",400]
[null,"Primavera","Teresa","Rabanetes",230]
[null,"Primavera","Jorge","Beterrabas",900]
[null,"Primavera","Filipe","Batatas",300]
[null,"Primavera","Teresa","Alface",200]
[null,"Primavera","Jorge","Rabanetes",1000]
[null,"Primavera","Filipe","Beterrabas",220]
[null,"Primavera","Teresa","Batatas",400]
[null,"Primavera","Jorge","Alface",200]
[null,"Primavera","Filipe","Rabanetes",400]
[null,"Verão","Teresa","Mirtilos",100]
[null,"Verão","Jorge","Morangos",30]
[null,"Verão","Filipe","Uvas",123]
[null,"Verão","Teresa","Abóboras",300]
[null,"Verão","Jorge","Mirtilos",350]
[null,"Verão","Filipe","Morangos",230]
[null,"Verão","Teresa","Uvas",120]
[null,"Verão","Jorge","Abóboras",640]
[null,"Verão","Filipe","Mirtilos",530]
[null,"Verão","Teresa","Morangos",560]
[null,"Verão","Jorge","Uvas",240]
[null,"Verão","Filipe","Abóboras",250]
[null,"Outono","Teresa","Abóboras-meninas",62]
[null,"Outono","Jorge","Curgetes",600]
[null,"Outono","Filipe","Maçãs",340]
[null,"Outono","Teresa","Laranjas",205]
[null,"Outono","Jorge","Abóboras-meninas",500]
[null,"Outono","Filipe","Curgetes",403]
[null,"Outono","Teresa","Maçãs",503]
[null,"Outono","Jorge","Laranjas",2000]
[null,"Outono","Filipe","Abóboras-meninas",140]
[null,"Outono","Teresa","Curgetes",502]
[null,"Outono","Jorge","Maçãs",120]
[null,"Outono","Filipe","Laranjas",50]

{"sheet":"20","index":20,"n_rows":17,"n_cols":11,"rows_kept":17}
["1. A Área da tabela dinâmica deste exemplo está nas células B12 a C17. Navegue para qualquer uma dessas células. \n\n"]
["2. Prima Alt+KL, L para abrir a Lista de Campos da tabela dinâmica. Por predefinição o foco estará na caixa de texto Procurar: \"Escrever palavras a procurar\". Não escreva nada e, em vez disso, prima a Tecla de Tabulação uma vez. NOTA: se a Lista de Campos não for aberta, prima Alt+KL, L novamente."]
["3. Prima as teclas de seta para se mover para o campo Representante de Vendas. Prima a Barra de Espaço para adicionar o campo Representante de Vendas à área Linhas. Se quiser apresentar os detalhes do Representante de Vendas na área Colunas, utilize a Tecla de Tabulação para se mover para o campo Representante de Vendas na secção Linha e, em seguida, prima a Barra de Espaço e selecione \"Mover para as Etiquetas de Coluna\". Prima a tecla Esc para sair do painel Campos da tabela dinâmica. "]
["4. Determine quem vendeu mais itens no outono e, em seguida, faça uma seleção na célula K8. "]
["Para continuar com este tutorial, prima Ctrl+Page Down. Para ir para a folha anterior, prima Ctrl+Page Up."]
[]
[{"$nulls":10},"Selecione uma opção:"]
[]
[{"$nulls":10},{"$f":"IF($K$8=\"Jorge\",\"Está certo!\",IF($K$8=\"Filipe\",\"Tente novamente…\",IF($K$8=\"Teresa\",\"Não é bem isso…\",IF($K$8=\" \",\" \",\" \"))))","v":" "}]
[]
[]
[null,"Rótulos de Linha","Soma de Unidades vendidas"]
[null,"Outono",{"v":5425,"d":"5,425"}]
[null,"Primavera",{"v":4760,"d":"4,760"}]
[null,"Verão",{"v":3473,"d":"3,473"}]
[null,"Inverno",{"v":4100,"d":"4,100"}]
[null,"Total Geral",{"v":17758,"d":"17,758"}]

{"sheet":"21","index":21,"n_rows":14,"n_cols":10,"rows_kept":14}
["1. Clique na célula B13 para ativar a tabela dinâmica com o nome \"Soma de Unidades vendidas\".\n\n"]
["2. Prima Alt+KL, L para abrir a Lista de Campos da tabela dinâmica. Por predefinição o foco estará na caixa de texto Procurar: \"Escrever palavras a procurar\". Não escreva nada e, em vez disso, prima a Tecla de Tabulação uma vez. NOTA: se a Lista de Campos não for aberta, prima Alt+KL, L novamente."]
["3. Utilize as teclas de seta e a Barra de Espaço para expandir o exemplo numa tabela dinâmica vertical com as estação à esquerda e os Representantes de vendas com avanços abaixo das estação. Prima a tecla Esc para sair do painel Campos da tabela dinâmica. "]
["Para continuar com este tutorial, prima Ctrl+Page Down. Para ir para a folha anterior, prima Ctrl+Page Up."]
[{"$nulls":9},{"$f":"IF(AND(B$14=\"Inverno\",$C$17=1030),\"Bom trabalho! Colocou um campo de\",\" \")","v":" "}]
[{"$nulls":9},{"$f":"IF(AND(B$14=\"Inverno\",$C$17=1030),\"linha secundário. Agora desloque-se\",\" \")","v":" "}]
[{"$nulls":9},{"$f":"IF(AND(B$14=\"Inverno\",$C$17=1030),\"para baixo e clique em Seguinte.\",\" \")","v":" "}]
[]
[]
[]
[]
[]
[null,"Soma de Unidades vendidas"]
[null,{"v":17758,"d":"17,758"}]

{"sheet":"22","index":22,"n_rows":14,"n_cols":10,"rows_kept":14}
["1. Clique na célula B13 para ativar a tabela dinâmica com o nome \"Soma de Unidades vendidas\"."]
["2. Prima Alt+KL, L para abrir a Lista de Campos da tabela dinâmica. Por predefinição o foco estará na caixa de texto Procurar: \"Escrever palavras a procurar\". Não escreva nada e, em vez disso, prima a Tecla de Tabulação uma vez. NOTA: se a Lista de Campos não for aberta, prima Alt+KL, L novamente."]
["3. Utilize as teclas de seta e a Barra de Espaço para modificar o exemplo para que mostre cada produto na respetiva fila e cada estação na respetiva coluna."]
["Para continuar com este tutorial, prima Ctrl+Page Down. Para ir para a folha anterior, prima Ctrl+Page Up.",{"$nulls":8},{"$f":"IF(AND($B$15=\"Abóboras\",$G$28=483),\"Bom trabalho! Colocou um campo\",\" \")","v":" "}]
[{"$nulls":9},{"$f":"IF(AND($B$15=\"Abóboras\",$G$28=483),\"de linha à esquerda e um campo\",\" \")","v":" "}]
[{"$nulls":9},{"$f":"IF(AND($B$15=\"Abóboras\",$G$28=483),\"de coluna com quatro novas\",\" \")","v":" "}]
[{"$nulls":9},{"$f":"IF(AND($B$15=\"Abóboras\",$G$28=483),\"colunas. Desloque-se para\",\" \")","v":" "}]
[{"$nulls":9},{"$f":"IF(AND($B$15=\"Abóboras\",$G$28=483),\"baixo e clique em Seguinte…\",\" \")","v":" "}]
[]
[]
[]
[]
[null,"Soma de Unidades vendidas"]
[null,{"v":17758,"d":"17,758"}]

{"sheet":"23","index":23,"n_rows":16,"n_cols":18,"rows_kept":16}
["1. Clique na célula B13 para ativar a tabela dinâmica com o nome \"Soma de Unidades vendidas\".\n\n"]
["2. Prima Alt+KL, L para abrir a Lista de Campos da tabela dinâmica. Por predefinição o foco estará na caixa de texto Procurar: \"Escrever palavras a procurar\". Não escreva nada e, em vez disso, prima a Tecla de Tabulação uma vez. NOTA: se a Lista de Campos não for aberta, prima Alt+KL, L novamente."]
["3. Utilize a Tecla de Tabulação, as teclas de seta e a Barra de Espaço para modificar o exemplo para que mostre os Representantes de vendas à esquerda, com as estação com avanços abaixo dos mesmos."]
["Para continuar com este tutorial, prima Ctrl+Page Down. Para ir para a folha anterior, prima Ctrl+Page Up."]
[{"$nulls":7},{"$f":"IF(AND($B$14=\"Filipe\",$C$14=5036),\"Bom trabalho! Agora a leitura dos\",\" \")","v":" "}]
[{"$nulls":7},{"$f":"IF(AND($B$14=\"Filipe\",$C$14=5036),\"dados é mais fácil. Desloque-se\",\" \")","v":" "}]
[{"$nulls":7},{"$f":"IF(AND($B$14=\"Filipe\",$C$14=5036),\"para baixo e clique em Seguinte…\",\" \")","v":" "}]
[]
[]
[]
[]
[]
[null,null,"Rótulos de Coluna"]
[null,null,"Filipe",{"$nulls":3},"Filipe Total","Jorge",{"$nulls":3},"Jorge Total","Teresa",{"$nulls":3},"Teresa Total","Total Geral"]
[null,null,"Outono","Primavera","Verão","Inverno",null,"Outono","Primavera","Verão","Inverno",null,"Outono","Primavera","Verão","Inverno"]
[null,"Soma de Unidades vendidas",933,{"v":1320,"d":"1,320"},{"v":1133,"d":"1,133"},{"v":1650,"d":"1,650"},{"v":5036,"d":"5,036"},{"v":3220,"d":"3,220"},{"v":2400,"d":"2,400"},{"v":1260,"d":"1,260"},{"v":1420,"d":"1,420"},{"v":8300,"d":"8,300"},{"v":1272,"d":"1,272"},{"v":1040,"d":"1,040"},{"v":1080,"d":"1,080"},{"v":1030,"d":"1,030"},{"v":4422,"d":"4,422"},{"v":17758,"d":"17,758"}]

{"sheet":"24","index":24,"n_rows":14,"n_cols":9,"rows_kept":14}
["1. Clique na célula B13 para ativar a tabela dinâmica com o nome \"Soma de Unidades vendidas\"."]
["2. Prima Alt+KL, L para abrir a Lista de Campos da tabela dinâmica. Por predefinição o foco estará na caixa de texto Procurar: \"Escrever palavras a procurar\". Não escreva nada e, em vez disso, prima a Tecla de Tabulação uma vez. NOTA: se a Lista de Campos não for aberta, prima Alt+KL, L novamente."]
["3. Utilize a Tecla de Tabulação, as teclas de seta e a Barra de Espaço para modificar o exemplo para que cada Representante de Vendas tenha os respetivos campos de coluna com as estação à esquerda e os Produtos com avanços abaixo dos mesmos."]
["4. Selecione a célula I9 e selecione o número de toranjas que o Filipe vendeu no inverno."]
["Para continuar com este tutorial, prima Ctrl+Page Down. Para ir para a folha anterior, prima Ctrl+Page Up."]
[]
[]
[{"$nulls":8},"Selecione uma opção:"]
[]
[{"$nulls":8},{"$f":"IF($I$9=400,\"Está certo!\",IF($I$9=530,\"Tente novamente…\",IF($I$9=123,\"Não é bem isso…\",\" \")))","v":" "}]
[]
[]
[null,"Soma de Unidades vendidas"]
[null,{"v":17758,"d":"17,758"}]

{"sheet":"Saiba mais","index":25,"n_rows":7,"n_cols":1,"rows_kept":7}
["Bom trabalho. As tabelas dinâmicas são fantásticas, não acha?"]
["Queremos que continue a aprender e praticar! Há mais para descobrir…"]
["Mais informações sobre tabelas dinâmicas\nDescubra o que pode fazer mais ao ler este artigo útil sobre tabelas dinâmicas."]
["Atualizar\nLeia este artigo importante sobre como atualizar tabelas dinâmicas. "]
["Comunidade\nContacte outros fãs do Excel. Podem ajudá-lo e podem beneficiar da sua ajuda."]
[]
[" "]